Cogmind - Beta 16 @@@ ROGUE MODE // 2025.11.03 @ 23:48:01 Player: Maxfecteau Result: Destroyed by G-34 Mercenary with Small Laser Performance ------------- Evolutions (1) 500 Regions Visited (3) 600 Robots Destroyed (25) 125 Value Destroyed (624) 624 Prototype IDs (2) 40 Alien Tech Used (0) 0 Bonus (0) 0 TOTAL SCORE: 1889 Bonus ------- None Cogmind --------- Core Integrity 0/400 Matter 300/300 Energy 100/100 System Corruption 0% Temperature Cool (6) Movement Core (350) Ox6 Location -9/Materials Parts ------- > --- POWER (1) -------- (None) > --- PROPULSION (3) --- (None) > --- UTILITY (3) ------ Large Storage Unit Utility Shielding > --- WEAPON (2) ------- (None) > --- INVENTORY (15) --- Ion Engine Aluminum Leg Aluminum Leg Medium Storage Unit Reflective Plating Reflective Plating Hacking Suite Hacking Suite Grenade Launcher Grenade Launcher Datajack Peak State ------------ > --- POWER ------------ Ion Engine > --- PROPULSION ------- Aluminum Leg Aluminum Leg Aluminum Leg > --- UTILITY ---------- Medium Storage Unit Sensor Array Utility Shielding > --- WEAPON ----------- Light Assault Rifle Light Assault Rifle > --- INVENTORY -------- Ion Engine Hacking Suite Hacking Suite Grenade Launcher Grenade Launcher Datajack [Rating: 10] Favorites ----------- Power Ion Engine Engine Ion Engine Propulsion Aluminum Leg Leg Aluminum Leg Utility Sensor Array Device Sensor Array Storage Medium Storage Unit Protection Utility Shielding Weapon Light Assault Rifle Energy Gun EM Pulse Gun Ballistic Gun Light Assault Rifle Build | -11 -10 -10 -9 ------- Run | Yrd Mat Min Mat Slots Evolved 2 | . . . 2 Power . | . . . . Propulsion 1 | . . . 1 Utility 1 | . . . 1 Weapon . | . . . . Parts Attached 20 | 6 5 3 6 Power 3 | 1 1 1 . Engine 3 | 1 1 1 . Core . | . . . . Reactor . | . . . . Propulsion 8 | 2 . 2 4 Treads . | . . . . Leg 8 | 2 . 2 4 Wheel . | . . . . Hover . | . . . . Flight . | . . . . Utility 5 | 1 2 . 2 Device 1 | . 1 . . Storage 3 | 1 1 . 1 Processor . | . . . . Hackware . | . . . . Protection 1 | . . . 1 Artifact . | . . . . Weapon 4 | 2 2 . . Energy Gun 1 | 1 . . . Energy Cannon . | . . . . Ballistic Gun 3 | 1 2 . . Ballistic Cannon . | . . . . Launcher . | . . . . Special Weapon . | . . . . Impact Weapon . | . . . . Slashing Weapon . | . . . . Piercing Weapon . | . . . . Special Melee Weapon . | . . . . Unidentified Prototypes . | . . . . Parts Lost 9 | . 1 . 8 Power 1 | . . . 1 Propulsion 4 | . . . 4 Utility 1 | . . . 1 Weapon 3 | . 1 . 2 Highest Loss Streak 5 | . 1 . 5 To Critical Strikes . | . . . . Average Backups 7 | . 7 8 8 Power . | . . 1 1 Propulsion . | . . . . Utility 3 | . 2 3 4 Weapon 2 | . 2 2 2 Tool/Special . | . . . . Unused Backups 8 | . . 1 7 Power . | . . . . Propulsion . | . . . . Utility 4 | . . . 4 Weapon 3 | . . 1 2 Tool/Special 1 | . . . 1 Average Slot Usage (%) 91 | . 94 100 84 Engine 12 | . 14 14 8 Leg 27 | . 28 28 27 Device 10 | . 10 14 9 Storage 13 | . 14 14 11 Protection 3 | . . . 10 Energy Gun 4 | . 7 . . Ballistic Gun 19 | . 18 28 16 Peak Build Rating 10 | 6 8 8 10 Average Rating 7 | 4 7 8 8 On Entrance 5 | . 6 8 8 Avg Prop Armor Cover (%) . | . . . . Naked Turns . | . . . . Heaviest Build 29 | 14 24 18 29 Greatest Support 30 | 20 20 20 30 Greatest Overweight (x) 7 | 1 1 . 7 Average Overweight (x) . | . . . . Largest Inventory Capacity 15 | 8 10 10 15 Average Capacity 10 | 6 9 10 12 Most Carried 11 | 1 10 10 11 Average Carried 7 | . 7 8 8 Final Capacity 15 | 8 10 10 15 Final Carried 11 | 1 10 8 11 Class Distribution -------------------- 66% | Mutant 33% | Scavenger-Mutant Dominant Class ---------------- Mutant | -10/Materials Scavenger-Mutant | -10/Mines Scavenger-Mutant | -9/Materials Resources | -11 -10 -10 -9 ----------- Run | Yrd Mat Min Mat Matter Collected 638 | 209 246 44 139 Remotely . | . . . . Salvage Created 924 | . 468 79 377 Parts 47 | . 27 6 14 Haulers Intercepted 3 | . 2 . 1 Recyclers Shooed . | . . . . Parts Field Recycled . | . . . . Retrieved Matter . | . . . . Parts Self-Destructed . | . . . . Prevented . | . . . . Parts Restored . | . . . . Kills | -11 -10 -10 -9 ------- Run | Yrd Mat Min Mat Combat Hostiles Destroyed 20 | . 11 2 7 Guns 19 | . 10 2 7 AOE 1 | . 1 . . Classes Destroyed 5 | . 4 . 1 Hauler 3 | . 2 . 1 Operator 2 | . 2 . . Swarmer 6 | . 6 . . Grunt 13 | . 5 2 6 Sentry 1 | . . . 1 Best Kill Streak 3 | . 3 2 3 Combat Bots Only 3 | . 3 2 3 Max Kills in Single Turn 1 | . 1 1 1 Gunslinging . | . . . . Exploded 1 | . 1 . . Melee . | . . . . Uniques/NPCs Destroyed . | . . . . Combat | -11 -10 -10 -9 -------- Run | Yrd Mat Min Mat Hostile Shots Fired 167 | . 54 8 105 Missed 43 | . 17 4 22 Hits 124 | . 37 4 83 Projectile 124 | . 37 4 83 Critical Strikes 1 | . . . 1 Damage Taken 1538 | . 386 55 1097 Core 498 | . 89 . 409 Absorbed by Shields . | . . . . Redirected to Shielding 33 | . . . 33 Core Remaining (%) 82 | 100 . 64 . Volleys Fired 115 | . 44 7 64 Largest 2 | . 2 2 2 Hottest 60 | . 60 40 40 Shots Fired 188 | . 75 14 99 Gun 188 | . 75 14 99 Cannon . | . . . . Launcher . | . . . . Special . | . . . . Kinetic 166 | . 53 14 99 Thermal . | . . . . Explosive . | . . . . Electromagnetic 22 | . 22 . . Robot Hit Streak 15 | . 10 9 15 Robot Miss Streak 6 | . 5 2 6 Penetration Max . | . . . . Secondary Targets 2 | . 2 . . Max Gunslinging Chain 1 | . 1 . . Shots Hit Robots 135 | . 49 10 76 Core Hits 51 | . 23 6 22 Critical Kills 2 | . 1 . 1 Critical Parts Destroyed 1 | . . . 1 Critical Strikes 3 | . 1 . 2 Destroy 3 | . 1 . 2 Melee Attacks . | . . . . Impact . | . . . . Slashing . | . . . . Piercing . | . . . . Sneak Attacks . | . . . . Combat Hostiles . | . . . . Follow-up Attacks . | . . . . Damage Inflicted 1381 | . 661 75 645 Guns 1314 | . 610 75 629 Cannons . | . . . . Explosions 51 | . 51 . . Melee . | . . . . Ramming 16 | . . . 16 Kinetic 1143 | . 439 75 629 Thermal 51 | . 51 . . Explosive . | . . . . Electromagnetic 171 | . 171 . . Impact . | . . . . Slashing . | . . . . Piercing . | . . . . Highest Corruption 2 | . 2 2 . Average Corruption 2 | . 2 2 . Corruption Purged . | . . . . Corruption Blocked . | . . . . Effects 8 | . 4 4 . Message Errors 2 | . . 2 . Matter Fused 3 | . 2 1 . Data Loss (minor) 1 | . 1 . . Alerts 2 | . 1 1 . Overload Shots . | . . . . Overflow Damage . | . . . . Projectiles . | . . . . Explosions . | . . . . Melee . | . . . . Knockbacks . | . . . . Impact . | . . . . Kinetic . | . . . . Secondary . | . . . . Self-Inflicted Damage 28 | . 26 . 2 Shots 1 | . 1 . . Rammed 12 | . . . 12 Targets Rammed 15 | . . . 15 Kicked 3 | . . . 3 Crushed . | . . . . Highest Temperature 42 | . 42 9 6 Average Temperature 9 | . 26 9 2 Received Heat Transfer 738 | . 99 36 603 Siege Activations . | . . . . Martial Activations . | . . . . Shielding Activations . | . . . . Robots Disrupted . | . . . . Combat Hostiles . | . . . . Robots Corrupted . | . . . . Combat Hostiles . | . . . . Parts Fried 1 | . 1 . . Impact Corruptions . | . . . . Robots Melted . | . . . . Combat Hostiles . | . . . . Parts Melted . | . . . . Heat Transferred 100 | . 100 . . Parts Sabotaged . | . . . . Parts Stolen . | . . . . Parts Stripped . | . . . . Power Chain Reactions 1 | . 1 . . Alert | -11 -10 -10 -9 ------- Run | Yrd Mat Min Mat Maximum Alert Level . | . . . . Low Security (%) 100 | 100 100 100 100 Level 1 . | . . . . Level 2 . | . . . . Level 3 . | . . . . Level 4 . | . . . . Level 5 . | . . . . High Security . | . . . . Max Security . | . . . . Peak Influence 174 | . 174 92 75 Initial 42 | . . 42 12 Average 50 | . 69 61 21 Influence Increases 686 | . 399 50 237 Destroy 0b10 Robot/C 400 | . 220 40 140 Destroy 0b10 Robot/NC 25 | . 20 . 5 Destroy Leader 86 | . 44 10 32 Successful Hack 7 | . 7 . . Destroy Structure 3 | . 3 . . Lose Combat Pursuer 165 | . 105 . 60 Influence Decreases 679 | . 290 127 262 Entered New Map 87 | . . 67 20 Time Decay 502 | . 280 60 162 Lost Part 90 | . 10 . 80 Squads Dispatched 2 | . 1 . 1 Investigation 1 | . . . 1 Extermination . | . . . . Reinforcement 1 | . 1 . . Assault . | . . . . Garrison . | . . . . Intercept . | . . . . Searches Triggered . | . . . . Construction Impeded . | . . . . Haulers Reinforced . | . . . . Active Scanning Responses . | . . . . Cargo Convoy Interrupts . | . . . . Stealth | -11 -10 -10 -9 --------- Run | Yrd Mat Min Mat Distress Signals 5 | . 5 . . Communications Jammed . | . . . . Distress Signals . | . . . . Times Spotted 37 | . 24 1 12 Peak Tracking Total 7 | . 7 1 6 Tactical Retreats 6 | . 4 . 2 Traps | -11 -10 -10 -9 ------- Run | Yrd Mat Min Mat Traps Triggered 2 | . 1 . 1 Indirectly . | . . . . Trap Hack Attempts . | . . . . Triggered . | . . . . Disarmed . | . . . . Reprogrammed . | . . . . Reused . | . . . . Traps Extracted . | . . . . Installed . | . . . . Triggered . | . . . . Machines | -11 -10 -10 -9 ---------- Run | Yrd Mat Min Mat Machines Disabled . | . . . . Max in Single Turn . | . . . . Machines Repaired . | . . . . Machines Dismantled . | . . . . Machines Sabotaged . | . . . . Overloaded Fab Kills . | . . . . Hacking | -11 -10 -10 -9 --------- Run | Yrd Mat Min Mat Machines Accessed 5 | . 4 . 1 Terminals 5 | . 4 . 1 Fabricators . | . . . . Repair Stations . | . . . . Recycling Units . | . . . . Scanalyzers . | . . . . Garrison Access . | . . . . Total Hacks 14 | . 12 . 2 Successful 6 | . 5 . 1 Failed 8 | . 7 . 1 Catastrophic . | . . . . Database Lockouts . | . . . . Manual 5 | . 5 . . Terminals 14 | . 12 . 2 Fabricators . | . . . . Repair Stations . | . . . . Recycling Units . | . . . . Scanalyzers . | . . . . Garrison Access . | . . . . Terminal Hacks 5 | . 4 . 1 Prototype ID Bank 1 | . 1 . . Branch Access Points 1 | . 1 . . Terminal Index 1 | . . . 1 Recall Investigation 1 | . 1 . . Hauler Manifests 1 | . 1 . . Fabricator Hacks . | . . . . Repair Station Hacks . | . . . . Recycling Unit Hacks . | . . . . Scanalyzer . | . . . . Garrison Access Hacks . | . . . . Unauthorized Hacks 1 | . 1 . . Terminals 1 | . 1 . . Operators 1 | . 1 . . Fabricators . | . . . . Repair Stations . | . . . . Recycling Units . | . . . . Scanalyzers . | . . . . Garrison Access . | . . . . Data Cores Recovered 1 | . 1 . . Used . | . . . . Hacking Detections 5 | . 4 . 1 Full Trace Events 1 | . 1 . . Feedback Events . | . . . . Feedback Blocked . | . . . . Robot Schematics Acquired . | . . . . Robots Built . | . . . . Authchips . | . . . . Time . | . . . . Total Robot Build Rating . | . . . . Part Schematics Acquired . | . . . . Parts Built . | . . . . Authchips . | . . . . Time . | . . . . Total Part Build Rating . | . . . . Part Studies Acquired . | . . . . Parts Repaired . | . . . . Time . | . . . . Parts Recycled . | . . . . Recycled Matter . | . . . . Retrieved Matter . | . . . . Retrieved Components . | . . . . Parts Scanalyzed . | . . . . Part Schematics Acquired . | . . . . Parts Damaged . | . . . . Bothacking | -11 -10 -10 -9 ------------ Run | Yrd Mat Min Mat Used RIF Installer . | . . . . Robots Hacked . | . . . . Non-combat . | . . . . Combat . | . . . . Robot Hacks Applied . | . . . . Relay Couplers Released . | . . . . Fabnet Peak Effective % . | . . . . Robots Rewired . | . . . . Allies Hacked . | . . . . Hacks Repelled . | . . . . Allies | -11 -10 -10 -9 -------- Run | Yrd Mat Min Mat Total Allies . | . . . . Largest Group . | . . . . Highest-Rated Group . | . . . . Highest-Rated Ally . | . . . . Total Orders . | . . . . Ally Attacks . | . . . . Total Damage . | . . . . Kills . | . . . . Allies Corrupted . | . . . . Allies Melted . | . . . . Intel | -11 -10 -10 -9 ------- Run | Yrd Mat Min Mat Active Infowar (turns) 1151 | . 609 125 417 Sensors 1151 | . 609 125 417 Robot Analysis Total . | . . . . Derelict Logs Recovered 2 | . . 2 . Drone Launches . | . . . . Drone Recoveries . | . . . . Exploration | -11 -10 -10 -9 ------------- Run | Yrd Mat Min Mat Turns Passed 1489 | 79 825 125 460 Spaces Moved 827 | 63 505 84 175 Core 14 | 11 . . 3 Treads . | . . . . Legs 813 | 52 505 84 172 Wheels . | . . . . Hover . | . . . . Flight . | . . . . Fastest Speed 50 | 50 120 120 120 Average Speed 121 | 110 120 120 130 Slowest Speed 400 | 120 190 120 400 Overloaded Moves . | . . . . Propulsion Burnouts . | . . . . Robots Hopped . | . . . . Potential Cave-ins . | . . . . Cave-ins Triggered . | . . . . Exploration Rate (%) 23 | 4 57 23 11 Regions Visited 3 Branch Regions 1 Pre-discovered Areas . | . . . . Known Exits Taken 1 | . 1 . . Unknown Exits Taken 2 | 1 . 1 . Scrap Searched . | . . . . Spaces Dug . | . . . . Terrain Destroyed 1 | . 1 . . Melee . | . . . . Projectile . | . . . . AOE 1 | . 1 . . Terrain Rammed . | . . . . Walls Destroyed . | . . . . Machines Disabled . | . . . . Actions | -11 -10 -10 -9 --------- Run | Yrd Mat Min Mat Total 1110 | 69 648 100 293 Wait 119 | . 88 . 31 Move 824 | 62 504 83 175 Hop . | . . . . Pick Up 10 | 1 6 1 2 Fast Attach 10 | 6 3 . 1 Attach 2 | . . . 2 Detach 1 | . 1 . . Swap 8 | . 2 3 3 Drop 6 | . . 6 . Fire 115 | . 44 7 64 Melee . | . . . . Ram 12 | . . . 12 Kick 3 | . . . 3 Crush . | . . . . Escape Stasis . | . . . . Rewire . | . . . . Trap . | . . . . Miscellaneous . | . . . . Route ------- -11/Scrapyard -10/Materials (discovered 3 exits: *Mat / *Min x2) -10/Mines -9/Materials History --------- Turn | Location | Event 9 | -11/Scrapyard | Discovered new exit (range 16) 80 | -11/Scrapyard | Entered Materials 280 | -10/Materials | Discovered new exit (range 4) 317 | -10/Materials | Build established: Mutant 580 | -10/Materials | Derelicts attacked the area 721 | -10/Materials | Identified exit to Mines 905 | -10/Materials | Entered Mines 974 | -10/Mines | Learned 2 Materials zone layouts 984 | -10/Mines | Met a Derelict bent on vengeance 1006 | -10/Mines | Discovered new exit (range 10) 1015 | -10/Mines | Learned Materials stockpile data 1030 | -10/Mines | Entered Materials 1030 | -9/Materials | Evolved 2 slots: Propulsion x1, Utility x1 1223 | -9/Materials | Build established: Scavenger-Mutant 1427 | -9/Materials | Core integrity fell below 50% 1464 | -9/Materials | Core integrity fell below 20% 1478 | -9/Materials | Lost 5 parts (3n1u1w) 1490 | -9/Materials | Destroyed by G-34 Mercenary with Small Laser Last Messages --------------- Ion Engine destroyed. K-01 Serf collects debris. G-47 Trooper destroyed. K-01 Serf collects debris. Lgt. Assault Rifle destroyed. Acquired 24 matter. Kicked G-47 Trooper out of the way. Aluminum Leg destroyed. Kicked G-34 Mercenary out of the way. K-01 Serf collects debris. Aluminum Leg destroyed. Critical hit (Burn: +37). K-01 Serf collects debris. Kicked M-13 Machinist. Aluminum Leg destroyed. Slammed into G-47 Trooper. Sensor Array destroyed. Slammed into G-34 Mercenary. Destabilizing: Core damaged (-8). Slammed into G-34 Mercenary. Map ----- +----------------------------------------------------+ | ?????????# ## ! #??# # #### | | ?????????# ############??# # + | | ?????????# #?????????????# "T" # # | | ?????????# #?????????????????????????????? | | ?????????# #?????????????????????????????? | | ?????????# #?????????????????????????????? | | ?????????# #?????????????????????????????? | | ?????????# #?????????????????????????????? | | ?????????# #######???????????????????????? | | ??######## !!#???????????????????????? | | ??# # !!#???????????????????????? | | ??# """ [#! !!#???????????????????????? | | ??# """ !+%% #???????????????????????? | | ??# """!!#[% ]]#???????????????????????? | | ??# !#* ]]#???????????????????????? | | ??# # #####???????????????????????? | | ??######## #???????????????????????????? | | ??# # #???????????????????????????? | | ??#""" # #???????????????????????????? | | ??#""" %/% #???????????????????????????? | | ??#""" [#% #???????????????????????????? | | ??# # #???????????????????????????? | | ??# # ############## ??????? | | ??######## % %%% ??????? | | ?????????# #####g######## #??????????? | | ?????????# #??#@% #??????????????? | | ?????????# #??#%g #??????????????? | | ?????????# #??# """ """ #??????????????? | | ?????????# #??# """ """ #??????????????? | | ?????##### #??# """ """ #??????????????? | | ?????# #??# """ """ ???????????????? | | ?????# #??# """ """ ???????????????? | | ?????# #??# ? ???????????????? | | ?????#########??###??##??????????????????? | | ?????????????????????????????????????????? | | ?????????????????????????????????????????? | | ?????????????????????????????????????????? | | ?????????????????????????????????????????? | | ?????????????????????????????????????????? | | ?????????????????????????????????????????? | | ?????????????????????????????????????????? | | ?????????????????????????????????????????? | | ?????????????????????????????????????????? | | ?????????????????????????????????????????? | | ?????????????????????????????????????????? | | ?????????????????????????????????????????? | | ?????????????????????????????????????????? | | ?????????????????????????????????????????? | | ?????????????????????????????????????????? | | ?????????????????????????????????????????? | +----------------------------------------------------+ Best States ------------- Heat Dissipation 28 Energy Generation 10 Energy Capacity 250 Matter Stores 300 Matter Capacity 300 Sight Range 16 Robot Scan Range 14 Terrain Scan Density 10 Utility Shielding 33 Evasion (%) 55 Item Schematics ----------------- None Robot Schematics ------------------ None Fabricated ------------ Nothing Repaired ---------- Nothing Studied --------- None Alien Tech Used ----------------- None Achievements -------------- None Challenges ------------ None Game ------ Seed RapidMeleeVibroblade Manual? 0 Play Time 00:14:49 Cumulative 19.1 hours Start 2025.11.03 @ 23:33:39 End 2025.11.03 @ 23:48:01 Sessions 1 Manual Loads 0 Difficulty Rogue Special Mode None Game No. 15 Rogue 15 Adventurer 0 Explorer 0 Win Type - Total 1 Types 1/0/0/0/0/0/0/0/0/0 Lore% 15 Gallery% 20 Achievement% 22 Wizard Run 0 Options --------- Layout 0 ASCII 1 Keyboard 1 Movement Arrows Keybinds 0 Fullscreen 2 Font 18/SmallcapsGlow Map View 76x50 Zoom Use 0% Tactical HUD 0 Map Filters NONE Filters NONE Steam 1 RUN: 0b1be551-ce2d-40b6-b8f5-d73d23035e79